bitfinex-derivatives/quotes_ETHF0:USTF0_20250116
["timestamp","ask_amount","ask_price","bid_price","bid_amount"]
[1737040743999,0.60704,3295.8,3295.7,1.468]
[1737040744312,3.2078,3296.3,3295.7,1.468]
[1737040744499,3.81476,3296.3,3296.2,0.60697]
[1737040744704,0.60697,3296.2,3296.1,3.90461107]
[1737040744905,4.72503,3296.7,3295.7,1.468]
[1737040745207,0.60702,3296.0,3295.9,0.60701]
[1737040745707,1.51729,3296.5,3295.7,1.468]
[1737040746101,0.60699,3296.1,3296.0,0.60699]
[1737040746302,1.51724,3296.6,3295.7,1.468]
[1737040746508,0.60697,3296.2,3295.8,0.60704]
[1737040746813,0.60697,3296.2,3295.7,1.468]
[1737040746814,0.60698,3296.2,3296.1,0.60698]
[1737040747110,3.2078,3296.7,3295.7,1.468]
[1737040747309,0.60692,3296.5,3296.4,0.60692]
[1737040747699,0.60694,3296.4,3296.3,0.60693]
[1737040747901,0.60692,3296.5,3296.4,0.60692]
[1737040748514,0.60688,3296.7,3296.6,0.60687]
[1737040748807,0.60688,3296.7,3296.6,1.468]
[1737040749011,1.3156,3297.2,3296.7,0.60687]
[1737040749307,3.2078,3297.1,3296.6,1.468]
[1737040749812,1.3156,3297.2,3296.6,1.468]
[1737040750111,0.60687,3296.7,3296.6,1.468]
[1737040750501,0.60687,3296.7,3296.6,2.07489]
[1737040750704,0.60686,3296.8,3296.7,0.60686]
[1737040750907,1.3241,3297.4,3296.6,4.76563107]
[1737040751211,0.60687,3296.7,3296.6,4.76563107]
[1737040751511,1.51694,3297.3,3296.6,4.76563107]
[1737040751715,1.3241,3297.4,3296.6,4.76563107]
[1737040751916,0.60687,3296.7,3296.6,5.37251107]
[1737040752116,0.60685,3296.9,3296.8,0.60684]
[1737040752308,5.98641,3297.6,3296.6,4.76563107]
[1737040752309,0.60681,3297.1,3297.0,0.6068]
[1737040752505,3.2078,3297.6,3296.8,3.2078]
[1737040752809,0.60682,3297.1,3297.0,0.60681]
[1737040753118,0.60684,3297.0,3296.9,0.60683]
[1737040753314,0.60684,3296.9,3296.8,3.2078]
[1737040753504,1.3166,3297.9,3296.6,4.76563107]
[1737040753714,1.3166,3297.9,3296.4,3.2078]
[1737040753715,4.72481,3297.2,3296.4,3.2078]
[1737040753914,0.60686,3296.8,3296.7,1.467]
[1737040756521,0.60686,3296.8,3296.7,2.07387]
[1737040756710,0.60686,3296.8,3296.7,1.467]
[1737040756911,0.60685,3296.9,3296.8,0.60684]
[1737040757111,0.60686,3296.8,3296.7,2.07387]
[1737040757307,0.60686,3296.8,3296.7,4.29457105]
[1737040758116,0.60683,3297.0,3296.9,0.60682]
[1737040758312,0.60686,3296.9,3296.8,0.60685]
[1737040758516,3.2078,3297.2,3296.7,4.29457105]
[1737040758715,0.60686,3296.8,3296.7,4.29457105]
[1737040759218,0.60686,3296.8,3296.7,2.82757105]
[1737040759417,0.60686,3296.8,3296.7,4.29457105]
[1737040760422,0.60686,3296.8,3296.7,4.90144105]
[1737040760913,0.60686,3296.8,3296.7,4.29457105]
[1737040761320,4.72498,3296.8,3296.3,2.82757105]
[1737040761512,0.60693,3296.4,3296.3,3.43452105]
[1737040761711,0.6069,3296.7,3296.3,4.29457105]
[1737040762020,0.60684,3296.9,3296.8,0.60684]
[1737040762522,0.60686,3296.8,3296.7,2.82757105]
[1737040763220,5.0,3296.8,3296.2,1.467]
[1737040763410,3.81475,3296.3,3296.2,1.467]
[1737040763614,0.60695,3296.3,3296.2,1.467]
[1737040763813,3.81475,3296.3,3296.2,1.467]
[1737040764016,0.60697,3296.2,3296.1,12.749]
[1737040764211,8.2078,3296.3,3295.7,1.467]
[1737040764526,1.51771,3295.6,3295.4,1.467]
[1737040764716,0.60711,3295.4,3295.3,1.467]
[1737040765015,0.60724,3294.7,3294.6,12.745]
[1737040765218,0.60724,3294.7,3294.6,15.57257105]
[1737040765409,0.60724,3294.7,3294.6,17.03757105]
[1737040765617,0.60724,3294.7,3294.6,14.68524301]
[1737040765916,0.60724,3294.7,3294.6,14.21]
[1737040766422,0.60732,3294.3,3294.2,1.465]
[1737040766619,3.81512,3294.3,3294.2,1.465]
[1737040766922,0.60734,3294.2,3294.1,1.465]
[1737040767426,0.60724,3294.8,3294.5,0.60727]
[1737040767616,0.6072,3295.0,3294.7,0.60723]
[1737040767817,0.6072,3295.0,3294.2,1.2281]
[1737040767818,3.2078,3295.1,3294.2,1.2281]
[1737040768123,0.60727,3294.6,3294.3,0.6073]
[1737040768323,3.2078,3294.7,3294.4,1.465]
[1737040768522,0.60728,3294.5,3294.4,1.465]
[1737040769520,1.2163,3294.6,3293.5,3.2078]
[1737040769724,3.2078,3293.8,3293.6,1.466]
[1737040770025,0.60746,3293.6,3293.3,1.83559]
[1737040770224,3.81522,3293.8,3293.5,0.60746]
[1737040770426,0.60743,3293.7,3293.4,2.07347]
[1737040770924,3.2078,3293.8,3293.3,1.2281]
[1737040771119,0.60745,3293.6,3293.5,1.466]
[1737040771322,0.6075,3293.3,3293.2,12.748]
[1737040771524,3.8153,3293.3,3293.2,14.214]
[1737040771724,3.2078,3293.3,3293.2,14.214]
[1737040772120,3.8153,3293.3,3293.2,14.214]
[1737040772329,3.2078,3293.3,3293.2,14.214]
[1737040772822,0.60747,3293.5,3293.2,14.214]
[1737040773224,0.60749,3293.4,3293.2,14.214]
[1737040773527,4.4793,3293.7,3293.2,14.214]
[1737040773727,0.6075,3293.4,3293.2,14.214]
[1737040774326,4.4793,3293.7,3293.2,14.214]
[1737040774528,0.6075,3293.4,3293.3,0.98754651]
[1737040774735,4.4793,3293.7,3293.3,0.98754651]
[1737040774924,4.4793,3293.7,3293.6,0.37604062]
[1737040775234,4.4709,3294.2,3293.6,0.98754651]
[1737040775423,5.07824,3294.2,3294.0,0.37599641]
[1737040775726,3.2078,3294.2,3294.1,2.45354651]
[1737040775927,3.2078,3294.2,3294.1,2.92094719]
[1737040776125,3.81514,3294.2,3294.1,2.92067777]
[1737040776527,3.81514,3294.2,3294.1,3.29664169]
[1737040776837,3.81514,3294.2,3294.1,3.29674436]
[1737040777130,3.81514,3294.2,3294.1,3.29672504]
[1737040777327,3.81507,3294.6,3294.3,0.60731]
[1737040777536,3.81506,3294.6,3294.5,0.37591199]
[1737040777728,3.81506,3294.6,3294.5,0.98736863]
[1737040778123,3.81506,3294.6,3294.5,2.92076931]
[1737040779926,3.81506,3294.6,3294.5,2.92070549]
[1737040781426,3.2078,3294.8,3294.7,0.60724]
[1737040781628,3.2078,3295.3,3294.7,0.98730481]
[1737040781823,1.18,3295.5,3295.4,0.60711]
[1737040782030,3.47645524,3295.6,3295.5,0.6071]
[1737040782240,3.47645524,3295.6,3295.5,1.5941095]
[1737040782738,0.60708,3295.6,3295.5,1.45441018]
[1737040784233,0.6071,3295.5,3295.4,1.466]
[1737040784431,5.0487,3295.5,3295.4,1.466]
[1737040785833,3.2078,3295.9,3295.8,0.60704]
[1737040786037,0.60707,3295.7,3295.4,1.466]
[1737040786235,0.60707,3295.7,3295.5,0.60709]
[1737040786537,0.60707,3295.7,3295.4,1.466]
[1737040786538,0.6071,3295.5,3295.4,1.466]
[1737040787637,1.51786,3295.3,3294.0,2.83063393]
[1737040787937,0.60732,3294.3,3294.1,1.466]
[1737040788133,0.60731,3294.4,3294.2,0.60734]
[1737040788439,0.60731,3294.4,3294.1,1.466]
[1737040788440,0.60729,3294.5,3294.3,0.6073]
[1737040788639,0.60731,3294.4,3294.2,0.60733]
[1737040788839,0.60728,3294.5,3294.3,2.07331]
[1737040789137,3.2078,3294.7,3294.6,0.60726]
[1737040789336,3.81505,3294.7,3294.5,0.60727]
[1737040789641,3.2078,3294.7,3294.6,0.60726]
[1737040789841,0.6071,3295.5,3294.5,1.5182]
[1737040790028,1.1803,3295.6,3295.1,2.83063393]
[1737040790234,3.2078,3295.7,3295.5,2.83063393]
[1737040790436,3.2078,3295.7,3295.6,0.60708]
[1737040790629,3.2078,3295.7,3295.5,2.83063393]
[1737040790835,3.47645524,3296.1,3295.6,1.2865]
[1737040791041,3.47645524,3297.0,3296.0,2.83063393]
[1737040791229,3.47645524,3297.0,3296.6,2.83063393]
[1737040791435,0.60684,3296.9,3296.6,2.83063393]
[1737040791630,4.08328524,3297.0,3296.8,0.60685]
[1737040791838,4.08328524,3297.0,3296.6,2.83063393]
[1737040791839,4.08327524,3297.0,3296.6,2.83063393]
[1737040792041,3.47645524,3297.0,3296.6,2.83063393]
[1737040792341,0.60684,3296.9,3296.7,0.60687]
[1737040792534,0.60684,3296.9,3296.6,3.43751393]
[1737040792936,0.60684,3297.0,3296.7,0.60686]
[1737040793135,3.2078,3297.1,3296.6,2.83063393]
[1737040793341,0.60687,3296.8,3296.6,2.83063393]
[1737040793536,0.60687,3296.8,3296.7,0.60687]
[1737040793746,0.60687,3296.8,3296.6,2.83063393]
[1737040793747,3.2078,3297.1,3296.6,2.83063393]
[1737040794039,0.60687,3296.7,3296.6,2.83063393]
[1737040794238,0.60687,3296.7,3296.6,3.4166562]
[1737040794833,0.60686,3296.8,3296.6,4.0235362]
[1737040795034,0.60686,3296.8,3296.7,0.58602227]
[1737040795239,0.60686,3296.8,3296.7,1.19289227]
[1737040795437,0.60686,3296.8,3296.7,0.58602227]
[1737040795643,4.4844,3297.5,3296.7,0.58602227]
[1737040795843,0.60678,3297.3,3297.1,3.43742393]
[1737040796149,0.60678,3297.3,3297.2,2.41441124]
[1737040797253,0.60678,3297.3,3297.2,1.82892345]
[1737040797440,0.60678,3297.3,3297.2,1.463]
[1737040797743,5.0,3297.3,3296.3,2.83063393]
[1737040797939,0.60692,3296.5,3296.4,2.41402616]
[1737040798441,0.60692,3296.5,3296.4,2.41428941]
[1737040799243,3.2078,3296.8,3296.4,2.41428941]
[1737040799446,3.2078,3297.0,3296.5,0.95128941]
[1737040799746,0.60687,3296.7,3296.6,0.95212411]
[1737040800341,3.81463,3297.0,3296.6,0.95212411]
[1737040800543,0.60686,3296.8,3296.7,0.95212411]
[1737040800749,0.60686,3296.8,3296.7,0.60687]
[1737040801144,3.2078,3297.1,3296.4,1.463]
[1737040801349,0.60691,3296.5,3296.4,1.463]
[1737040801943,0.6069,3296.6,3296.4,1.463]
[1737040802248,3.2078,3297.1,3296.5,3.19802789]
[1737040802442,0.60686,3296.8,3296.6,0.36739396]
[1737040802750,0.60686,3296.8,3296.5,2.83063393]
[1737040802751,0.60686,3296.8,3296.7,0.36739396]
[1737040803244,3.2078,3297.1,3295.7,4.02793393]
[1737040803449,0.60702,3295.9,3295.7,4.02793393]
[1737040803647,0.60702,3295.9,3295.8,3.6710141]
[1737040803843,3.2078,3296.6,3295.8,3.6710141]
[1737040804151,0.60684,3296.9,3296.8,0.60684]
[1737040804348,0.60684,3296.9,3296.8,2.43798081]
[1737040804651,0.60684,3296.9,3296.8,1.83112081]
[1737040804844,0.60683,3297.0,3296.9,0.60684]
[1737040805144,0.60684,3296.9,3296.8,1.463]
[1737040805348,0.60684,3296.9,3296.8,1.82813645]
[1737040805648,3.2078,3297.4,3296.8,2.4125494]
[1737040805851,0.60678,3297.3,3297.2,0.60677]
[1737040806141,0.60673,3297.5,3297.2,0.94947113]
[1737040806347,0.60673,3297.5,3297.4,3.43738393]
[1737040806556,0.60672,3297.6,3297.5,0.60672]
[1737040806850,0.6067,3297.7,3297.6,0.6067]
[1737040807044,0.60669,3297.7,3297.6,0.97184645]
[1737040807240,0.60669,3297.7,3297.6,0.36513645]
[1737040807841,3.2078,3297.9,3297.8,0.60667]
[1737040808039,4.99285524,3298.5,3297.9,0.60665]
[1737040808040,0.60664,3298.0,3297.9,0.60665]
[1737040808253,0.60663,3298.1,3298.0,0.60664]
[1737040808554,0.60663,3298.1,3298.0,0.36513645]
[1737040809356,0.60665,3297.9,3297.8,1.463]
[1737040809653,0.60665,3297.9,3297.8,1.82825502]
[1737040810555,0.60665,3297.9,3297.8,0.36525502]
[1737040810754,0.60667,3297.8,3297.7,1.463]
[1737040810955,0.60667,3297.8,3297.7,1.82843175]
[1737040811550,1.216,3297.9,3297.1,12.746]
[1737040811858,0.60678,3297.2,3297.1,13.3528]
[1737040812050,3.2078,3297.5,3297.1,15.1597457]
[1737040812363,1.216,3297.9,3297.2,0.9507457]
[1737040812660,0.60676,3297.4,3297.3,0.9507457]
[1737040813052,0.60676,3297.4,3297.3,0.1661857]
[1737040813252,0.60699,3296.1,3296.0,1.2633]
[1737040813554,3.2078,3296.9,3296.0,2.7263]
[1737040813755,3.2078,3296.9,3296.6,2.83063393]
[1737040814055,0.60692,3296.5,3296.3,0.60694]
[1737040814258,3.2078,3296.9,3296.4,2.83063393]
[1737040814554,0.60691,3296.5,3296.4,2.83063393]
[1737040814759,4.72493,3296.9,3296.0,5.55693393]
[1737040814959,0.60699,3296.1,3296.0,6.16393393]
[1737040815148,0.60697,3296.2,3296.0,5.55693393]
[1737040815353,0.60699,3296.1,3296.0,4.09393393]
[1737040815559,0.60698,3296.2,3296.0,5.55693393]
[1737040815754,0.60699,3296.1,3296.0,5.55693393]
[1737040815954,0.60699,3296.1,3296.0,1.463]
[1737040817555,0.60711,3295.4,3295.3,1.2392]
[1737040817858,0.60713,3295.3,3295.2,14.207]
[1737040818054,3.81493,3295.3,3295.2,14.207]
[1737040819953,0.60713,3295.3,3295.2,14.207]
[1737040820355,3.2078,3295.7,3295.3,0.60712]
[1737040820356,0.6071,3295.5,3295.3,0.60712]
[1737040820563,3.2078,3295.7,3295.2,14.207]
[1737040820763,0.60713,3295.3,3295.2,14.207]
[1737040821360,3.81493,3295.3,3295.2,14.207]
[1737040821553,3.81493,3295.3,3295.2,1.463]
[1737040821757,3.2078,3295.3,3294.5,1.1872]
[1737040822060,0.60725,3294.7,3294.5,1.79447]
[1737040822258,0.60725,3294.7,3294.6,1.463]
[1737040822657,0.60718,3295.1,3294.6,1.463]
[1737040822965,0.60716,3295.2,3295.0,0.60719]
[1737040823170,3.2078,3295.3,3294.9,2.83063393]
[1737040823465,0.60715,3295.2,3295.0,2.83063393]
[1737040823662,0.60717,3295.1,3295.0,2.83063393]
[1737040823869,3.2078,3295.3,3295.0,2.83063393]
[1737040824060,3.2078,3295.3,3294.6,4.29363393]
[1737040824261,0.60718,3295.1,3294.9,0.60721]
[1737040824565,3.2078,3295.3,3294.6,4.29363393]
[1737040824867,0.6072,3295.0,3294.8,0.60721]
[1737040825070,0.60719,3295.1,3294.9,0.96374994]
[1737040825362,0.6072,3295.0,3294.8,0.60722]
[1737040825554,0.60719,3295.0,3294.9,0.35645116]
[1737040826357,3.2078,3295.3,3295.2,0.60715]
[1737040826563,0.60709,3295.6,3295.2,3.18708509]
[1737040826757,3.2078,3295.7,3295.5,0.60709]
[1737040826970,3.81486,3295.7,3295.6,1.81745116]
[1737040827275,3.81486,3295.7,3295.6,1.461]
[1737040827463,3.81486,3295.7,3295.6,2.42443865]
[1737040827655,3.81486,3295.7,3295.6,1.81735865]
[1737040827860,3.2078,3296.1,3295.6,2.42443865]
[1737040828063,3.2078,3296.1,3295.7,0.35635865]
[1737040828264,3.2078,3296.1,3295.8,3.18699258]
[1737040828567,3.2078,3296.1,3295.7,0.60705]
[1737040828763,3.2078,3296.1,3295.6,1.461]
[1737040829063,3.2078,3296.1,3295.7,0.35632451]
[1737040829273,3.2078,3296.5,3296.4,0.60693]
[1737040829568,2.30221093,3296.9,3296.8,0.60686]
[1737040829767,2.30221093,3296.9,3296.8,1.81726386]
[1737040829959,2.90905093,3296.9,3296.8,2.42412386]
[1737040830161,2.30221093,3296.9,3296.8,5.25475779]
[1737040830461,0.5333054,3297.0,3296.9,0.60684]
[1737040830660,2.31365612,3297.8,3297.7,0.60668]
[1737040830864,2.31365612,3297.8,3297.2,6.03843393]
[1737040831057,0.60675,3297.4,3297.3,1.81724145]
[1737040831265,2.31365612,3297.8,3297.3,1.81724145]
[1737040831567,0.60673,3297.5,3297.4,0.35624145]
[1737040831959,5.93342,3298.0,3297.4,0.35615695]
[1737040832155,4.4168,3298.0,3297.5,0.35614504]
[1737040832358,4.4168,3298.0,3297.3,1.461]
[1737040832555,3.2078,3298.0,3297.4,0.35606612]
[1737040832759,3.2078,3298.0,3297.5,0.35606612]
[1737040832966,3.81444,3298.0,3297.8,0.60666]
[1737040833163,3.2078,3298.0,3297.3,4.29163393]
[1737040833367,0.60668,3297.8,3297.6,0.6067]
[1737040833862,3.2078,3298.0,3297.3,4.29163393]
[1737040834068,3.2078,3298.0,3297.4,0.35594294]
[1737040834281,3.2078,3298.0,3297.9,0.60665]
[1737040834763,3.2078,3298.0,3297.7,2.83063393]
[1737040834962,1.209,3298.7,3297.7,2.83063393]
[1737040834963,3.2078,3298.4,3297.7,2.83063393]
[1737040835363,0.60663,3298.1,3297.9,0.60665]
[1737040835561,3.2078,3298.4,3297.7,2.83063393]
[1737040835764,3.2078,3298.4,3297.8,0.60666]
[1737040835961,0.60665,3297.9,3297.8,0.60667]
[1737040836162,3.2078,3298.4,3297.8,0.60666]
[1737040836367,1.209,3298.7,3297.5,1.1942]
[1737040836368,4.4168,3298.7,3298.4,0.60655]
[1737040836562,3.2078,3298.7,3298.5,4.29163393]
[1737040836773,3.2078,3298.7,3298.6,0.60653]
[1737040837069,4.63842253,3299.3,3298.7,1.51627]
[1737040837268,4.63842253,3299.3,3299.2,3.43704393]
[1737040837469,4.63842253,3299.3,3299.2,3.79261676]
[1737040838168,4.63842253,3299.3,3299.2,4.64720676]
[1737040838463,0.60641,3299.2,3299.1,1.46]
[1737040838672,3.81421,3299.2,3299.1,1.46]
[1737040840669,3.81421,3299.2,3298.7,1.46]
[1737040840670,0.60649,3298.8,3298.7,1.46]
[1737040840971,3.81429,3298.8,3298.7,1.46]
[1737040841165,3.2078,3298.8,3298.2,2.83063393]
[1737040841366,3.81436,3298.4,3298.3,1.46]
[1737040841767,3.2078,3298.4,3298.3,1.46]
[1737040842371,3.81436,3298.4,3298.3,1.46]
[1737040842575,3.2078,3298.4,3298.3,1.46]
[1737040842770,3.2078,3298.4,3298.3,2.06658]
[1737040843271,3.2078,3298.4,3298.3,1.46]
[1737040843476,0.60656,3298.4,3298.3,1.46]
[1737040843670,0.60653,3298.6,3298.4,0.60656]
[1737040843975,3.2078,3298.8,3298.3,1.46]
[1737040844875,0.60656,3298.4,3298.3,1.46]
[1737040845369,3.2078,3298.4,3298.0,1.2116]
[1737040845574,0.60658,3298.3,3298.1,1.46]
[1737040845771,3.2078,3298.4,3298.1,1.46]
[1737040846074,0.60658,3298.3,3298.2,1.46]
[1737040847872,3.2078,3298.4,3298.2,1.46]
[1737040848178,3.2078,3298.4,3298.2,4.89722393]
[1737040848374,3.2078,3298.4,3298.2,4.29063393]
[1737040848571,3.2078,3298.4,3298.3,0.60658]
[1737040849077,0.60658,3298.3,3298.2,1.46]
[1737040849471,0.60658,3298.3,3298.2,2.0666]
[1737040849672,0.60658,3298.3,3298.2,1.46]
[1737040849979,0.60665,3297.9,3297.8,2.83063393]
[1737040850177,0.60665,3297.9,3297.8,1.46]
[1737040850377,0.60665,3298.0,3297.9,0.60665]
[1737040850573,1.51646,3298.3,3297.8,1.46]
[1737040850875,3.2078,3298.4,3297.0,2.83063393]
[1737040850876,0.60676,3297.3,3297.0,2.83063393]
[1737040851071,0.6068,3297.1,3297.0,1.46]
[1737040851282,4.72481,3297.2,3296.8,1.46]
[1737040851478,3.2078,3297.2,3296.3,1.0923]
[1737040851776,0.60697,3296.2,3296.1,12.739]
[1737040851980,0.60697,3296.2,3296.1,14.199]
[1737040852570,3.2078,3296.4,3296.1,17.02963393]
[1737040852785,1.0131,3297.3,3296.2,0.35518009]
[1737040852975,1.61987,3297.3,3297.1,0.60679]
[1737040853170,3.81456,3297.4,3297.2,2.06677]
[1737040853576,3.81456,3297.4,3297.3,0.60676]
[1737040853781,3.2078,3297.4,3297.2,1.46]
[1737040854077,0.60676,3297.3,3297.2,1.46]
[1737040856574,0.60676,3297.3,3296.2,5.3468]
[1737040856575,3.2078,3297.4,3296.2,8.14633393]
[1737040856777,3.2078,3296.9,3296.3,2.06493]
[1737040856984,3.2078,3296.9,3296.4,0.96324073]
[1737040857182,3.2078,3296.9,3296.6,2.83063393]
[1737040857382,3.2078,3296.9,3296.7,0.35630962]
[1737040857580,3.2078,3296.9,3296.6,2.83063393]
[1737040857581,3.2078,3296.9,3296.8,0.96316962]
[1737040857884,3.81464,3296.9,3296.8,0.35630962]
[1737040858180,3.2078,3297.9,3296.8,0.35630962]
[1737040858375,0.60665,3298.0,3297.5,2.83063393]
[1737040858571,0.60664,3298.0,3297.9,2.83063393]
[1737040858976,3.2078,3298.3,3297.9,2.83063393]
[1737040859182,3.2078,3298.3,3298.2,0.60659]
[1737040859183,0.60659,3298.3,3298.2,0.60659]
[1737040859484,0.60657,3298.4,3298.3,0.60657]
[1737040859676,4.72408,3298.7,3298.3,0.35683977]
[1737040859883,4.72408,3298.7,3297.9,2.83063393]
[1737040859884,1.51632,3298.6,3297.9,2.83063393]
[1737040860179,0.60664,3298.0,3297.9,2.83063393]
[1737040860385,0.60664,3298.0,3297.9,0.35688952]
[1737040860580,0.60669,3297.8,3297.7,0.60669]
[1737040860775,0.60667,3297.8,3297.7,0.35691046]
[1737040861178,3.2078,3298.3,3297.7,1.81491046]
[1737040861378,3.2078,3298.3,3298.1,2.83063393]
[1737040861582,3.2078,3298.3,3298.2,0.96351046]
[1737040861881,3.81438,3298.3,3298.2,1.458]
[1737040862080,0.60655,3298.5,3298.3,0.60657]
[1737040862295,3.2078,3298.7,3298.2,1.458]
[1737040862589,3.2078,3299.6,3298.5,2.83063393]
[1737040862783,0.60643,3299.1,3299.0,2.83063393]
[1737040862982,5.2932,3299.6,3299.0,4.28863393]
[1737040863183,0.60642,3299.2,3299.1,0.35680454]
[1737040863580,3.2078,3299.6,3299.1,0.35680454]
[1737040863784,0.6064,3299.3,3299.2,0.35680454]
[1737040864281,0.60649,3298.8,3298.7,1.458]
[1737040864485,3.81429,3298.8,3298.7,1.458]
[1737040865987,0.60662,3298.1,3297.7,3.43731393]
[1737040866192,0.60662,3298.1,3297.7,2.83063393]
[1737040866485,0.60662,3298.1,3298.0,14.199]
[1737040866879,0.60662,3298.1,3298.0,1.458]
[1737040867987,2.1144,3298.2,3297.3,3.90023393]
[1737040868188,2.1144,3298.2,3297.4,1.458]
[1737040868487,0.60673,3297.5,3297.4,1.458]
[1737040868689,0.60673,3297.5,3297.3,2.83063393]
[1737040868690,0.60684,3297.0,3296.9,2.83063393]
[1737040868894,0.60675,3297.4,3297.3,1.458]
[1737040869688,0.60675,3297.4,3297.3,4.28863393]
[1737040869890,0.60674,3297.5,3297.4,0.60675]
[1737040870082,0.60671,3297.6,3297.5,0.60672]
[1737040870284,0.60671,3297.6,3297.3,4.28863393]
[1737040870285,3.2078,3297.9,3297.3,4.28863393]
[1737040870590,3.2078,3298.4,3297.7,2.83063393]
[1737040870789,0.60666,3297.9,3297.7,2.83063393]
[1737040871084,3.2078,3298.4,3297.7,2.83063393]
[1737040871085,0.60667,3297.8,3297.7,2.83063393]
[1737040871287,0.60675,3297.4,3297.3,1.458]
[1737040874190,0.60675,3297.4,3296.8,2.83063393]
[1737040874392,3.2078,3297.1,3296.9,1.458]
[1737040874693,0.60687,3296.7,3296.6,12.74]
[1737040874889,3.81467,3296.7,3296.6,12.74]
[1737040875189,3.81467,3296.7,3296.6,14.198]
[1737040875496,3.81467,3296.7,3296.6,12.74]
[1737040878392,7.84622253,3297.5,3296.6,12.74]
[1737040878593,7.84622253,3297.5,3297.2,2.83063393]
[1737040878796,0.60676,3297.4,3297.3,0.35271013]
[1737040878998,4.63842253,3297.5,3297.4,0.60675]
[1737040879197,4.63842253,3297.5,3297.4,0.95946013]
[1737040879599,0.60668,3297.8,3297.7,0.60669]
[1737040879812,3.2078,3298.0,3297.3,1.458]
[1737040879991,3.2078,3298.0,3297.6,2.83063393]
[1737040880194,0.60667,3297.8,3297.7,0.95943533]
[1737040880497,0.60667,3297.8,3297.7,0.95944533]
[1737040880800,0.60666,3297.9,3297.8,0.60665]
[1737040880999,3.2078,3298.0,3297.8,0.35275533]
[1737040881195,3.81444,3298.0,3297.9,0.35275533]
[1737040881898,0.60669,3297.7,3297.6,3.43733393]
[1737040882096,0.60669,3297.7,3297.6,1.81074341]
[1737040882299,0.60669,3297.7,3297.6,1.458]
[1737040882495,3.2078,3298.0,3297.6,4.6415607]
[1737040882796,0.60667,3297.8,3297.7,0.35292677]
[1737040883597,0.60667,3297.8,3297.7,1.458]
[1737040883899,5.60667,3297.8,3297.7,1.458]
[1737040884403,0.60667,3297.8,3297.7,1.458]
[1737040885002,0.60682,3297.0,3296.9,1.0462]
[1737040885199,0.60673,3297.5,3297.4,1.458]
[1737040885397,3.81453,3297.5,3297.4,1.458]
[1737040885604,4.87003,3297.5,3297.4,1.458]
[1737040885908,3.2078,3297.5,3296.8,2.83063393]
[1737040886204,3.2078,3297.5,3296.9,1.80893423]
[1737040886392,3.2078,3297.9,3297.2,2.83063393]
[1737040886599,4.63842253,3298.0,3297.9,0.60665]
[1737040886903,5.7226144,3298.2,3298.1,0.60662]
[1737040887104,5.7226144,3298.2,3298.1,0.95955423]
[1737040887312,5.7226144,3298.2,3298.1,5.95955423]
[1737040887606,4.84967047,3298.2,3298.1,5.95955423]
[1737040887905,2.055,3299.4,3298.1,5.95955423]
[1737040887906,0.60639,3299.4,3299.2,0.6064]
[1737040888207,0.60638,3299.4,3299.3,1.456]
[1737040888397,3.2078,3299.5,3299.3,1.80857909]
[1737040888599,6.95763379,3300.7,3299.4,3.56036952]
[1737040888905,0.60618,3300.5,3300.1,2.83063393]
[1737040889095,6.95763379,3300.7,3300.6,0.60616]
[1737040889301,6.95763379,3300.7,3300.6,4.21549586]
[1737040890103,3.2078,3301.3,3300.6,3.60933586]
[1737040890302,3.2078,3301.3,3300.7,1.80802517]
[1737040890502,3.2078,3301.3,3300.8,0.35202517]
[1737040890702,3.81383,3301.3,3301.0,0.60607]
[1737040890900,3.2078,3301.8,3300.7,1.456]
[1737040891100,3.2078,3301.8,3301.2,3.25731069]
[1737040891399,3.2078,3301.8,3301.3,0.35141113]
[1737040891601,3.2078,3301.8,3301.4,0.3507333]
[1737040891807,3.2078,3301.8,3301.5,0.60598]
[1737040891998,3.2078,3301.8,3301.6,1.456]
[1737040892599,0.60596,3301.7,3301.6,1.456]
[1737040894004,3.2078,3301.8,3301.6,1.456]
[1737040894205,3.81375,3301.8,3301.6,1.456]
[1737040894397,0.60596,3301.7,3301.6,1.456]
[1737040896203,0.60603,3301.3,3300.7,3.25731069]
[1737040896506,0.60607,3301.1,3300.8,1.455]
[1737040896702,0.60597,3301.6,3300.8,2.06111]
[1737040896906,3.2078,3301.7,3300.7,3.25731069]
[1737040896907,4.72273,3301.7,3300.7,3.25731069]
[1737040897106,0.60609,3301.0,3300.9,1.455]
[1737040898001,3.81383,3301.3,3301.0,0.60607]
[1737040898197,3.2078,3301.3,3301.0,0.60607]
[1737040898504,0.60603,3301.3,3301.0,0.60607]
[1737040898696,4.2149,3301.8,3300.9,4.6628]
[1737040898900,0.60604,3301.3,3300.9,2.06109]
[1737040899098,0.60608,3301.0,3300.9,1.455]
[1737040899300,1.0071,3301.8,3300.7,3.25731069]
[1737040899301,0.60612,3300.8,3300.7,3.25731069]
[1737040899502,3.2078,3301.3,3300.7,4.71231069]
[1737040899706,0.60602,3301.4,3300.7,4.71231069]
[1737040900007,0.60602,3301.4,3301.0,0.60607]
[1737040900304,0.60602,3301.4,3300.7,4.71231069]
[1737040900305,4.2149,3301.8,3300.7,4.71231069]
[1737040900901,0.60606,3301.2,3300.8,0.60611]
[1737040901205,4.2149,3301.8,3300.7,4.71231069]
[1737040901603,1.51494,3301.6,3300.7,4.71231069]
[1737040901802,0.60609,3301.0,3300.7,4.71231069]
[1737040902112,0.60603,3301.3,3300.8,1.455]
[1737040902311,3.2078,3301.4,3300.8,1.455]
[1737040902507,0.6061,3300.9,3300.8,1.455]
[1737040903204,3.2078,3301.0,3300.8,1.455]
[1737040903508,3.2078,3301.4,3300.8,1.455]